fUST/lending_fUST_20250901
["ID","MTS","AMOUNT","RATE_DAILY","PERIOD"]
[382529950,1756657860922,-480.0,0.00018347,2]
[382529952,1756657860930,-1032.59,0.00018347,2]
[382529953,1756657860940,-856.0,0.00018347,2]
[382529955,1756657860949,-480.0,0.00018347,2]
[382529957,1756657860959,-480.0,0.00018347,2]
[382529959,1756657860968,-820.62,0.00018347,2]
[382529961,1756657860979,-480.0,0.00018347,2]
[382529963,1756657860989,-232.24603415,0.00018347,2]
[382529965,1756657860999,-480.0,0.00018347,2]
[382529967,1756657861008,-480.0,0.00018347,2]
[382529969,1756657861017,-912.55,0.00018347,2]
[382529971,1756657861027,-480.0,0.00018347,2]
[382529972,1756657861036,-669.3,0.00018347,2]
[382529974,1756657861046,-583.43,0.00018347,2]
[382529976,1756657861055,-480.0,0.00018347,2]
[382529978,1756657861067,-1390.06,0.00018347,2]
[382529980,1756657861076,-480.0,0.00018347,2]
[382529982,1756657861086,-1386.68,0.00018347,2]
[382529984,1756657861097,-645.85,0.00018347,2]
[382529986,1756657861106,-480.0,0.00018347,2]
[382529988,1756657861116,-480.0,0.00018347,2]
[382529990,1756657861126,-480.0,0.00018347,2]
[382529992,1756657861135,-692.89,0.00018347,2]
[382529994,1756657861145,-238.65494765,0.00018347,2]
[382529995,1756657861154,-1205.95,0.00018347,2]
[382529997,1756657861185,-480.0,0.00018347,2]
[382530001,1756657861213,-480.0,0.00018347,2]
[382530003,1756657861225,-801.01,0.00018347,2]
[382530005,1756657861235,-1406.51,0.00018347,2]
[382530007,1756657861244,-480.0,0.00018347,2]
[382530008,1756657861253,-1292.99,0.00018347,2]
[382530010,1756657861264,-480.0,0.00018347,2]
[382530012,1756657861274,-1268.18,0.00018347,2]
[382530014,1756657861285,-828.97,0.00018347,2]
[382530016,1756657861294,-480.0,0.00018347,2]
[382530018,1756657861304,-1362.94,0.00018347,2]
[382530020,1756657861314,-942.78,0.00018347,2]
[382530022,1756657861323,-1059.86,0.00018347,2]
[382530024,1756657861333,-953.14,0.00018347,2]
[382530026,1756657861342,-892.2,0.00018347,2]
[382530028,1756657861352,-1526.36,0.00018347,2]
[382530030,1756657861361,-1469.9,0.00018347,2]
[382530031,1756657861370,-151.0,0.00018347,2]
[382530033,1756657861379,-480.0,0.00018347,2]
[382530035,1756657861389,-480.0,0.00018347,2]
[382530037,1756657861399,-996.57,0.00018347,2]
[382530039,1756657861410,-551.22,0.00018347,2]
[382530041,1756657861419,-480.0,0.00018347,2]
[382530043,1756657861429,-1077.0,0.00018347,2]
[382530045,1756657861439,-480.0,0.00018347,2]
[382530047,1756657861450,-1190.51,0.00018347,2]
[382530049,1756657861459,-480.0,0.00018347,2]
[382530051,1756657861469,-1572.58,0.00018347,2]
[382530053,1756657861479,-531.35,0.00018347,2]
[382530054,1756657861488,-8598.6,0.00018347,2]
[382530056,1756657861497,-1217.15,0.00018347,2]
[382530058,1756657861508,-480.0,0.00018347,2]
[382530060,1756657861517,-713.41,0.00018347,2]
[382530062,1756657861527,-548.91,0.00018347,2]
[382530064,1756657861536,-480.0,0.00018347,2]
[382530066,1756657861545,-500.0,0.00018347,2]
[382530068,1756657861555,-481.1,0.00018347,2]
[382530069,1756657861564,-831.11,0.00018347,2]
[382530071,1756657861574,-606.72,0.00018347,2]
[382530073,1756657861583,-598.1,0.00018347,2]
[382530075,1756657861592,-480.0,0.00018347,2]
[382530077,1756657861601,-1770.37,0.00018347,2]
[382530079,1756657861611,-5189.54,0.00018347,2]
[382530081,1756657861620,-480.0,0.00018347,2]
[382530082,1756657861629,-536.58,0.00018347,2]
[382530084,1756657861639,-151.0,0.00018347,2]
[382530086,1756657861649,-151.0,0.00018347,2]
[382530088,1756657861658,-480.0,0.00018347,2]
[382530090,1756657861668,-3314.73,0.00018347,2]
[382530092,1756657861679,-480.0,0.00018347,2]
[382530094,1756657861688,-151.0,0.00018347,2]
[382530096,1756657861697,-480.0,0.00018347,2]
[382530098,1756657861707,-480.0,0.00018347,2]
[382530100,1756657861716,-1145.72,0.00018347,2]
[382530101,1756657861725,-480.0,0.00018347,2]
[382530103,1756657861734,-841.77,0.00018347,2]
[382530105,1756657861744,-480.0,0.00018347,2]
[382530107,1756657861753,-759.14,0.00018347,2]
[382530109,1756657861763,-480.0,0.00018347,2]
[382530111,1756657861773,-2854.34,0.00018347,2]
[382530113,1756657861784,-480.0,0.00018347,2]
[382530115,1756657861794,-1222.41,0.00018347,2]
[382530117,1756657861803,-2342.63,0.00018347,2]
[382530119,1756657861822,-151.0,0.00018347,2]
[382530121,1756657861840,-533.66,0.00018347,2]
[382530122,1756657861849,-151.0,0.00018347,2]
[382530124,1756657861858,-480.0,0.00018347,2]
[382530126,1756657861868,-480.0,0.00018347,2]
[382530128,1756657861878,-637.07,0.00018347,2]
[382530130,1756657861887,-1051.42,0.00018347,2]
[382530132,1756657861896,-480.0,0.00018347,2]
[382530133,1756657861905,-480.0,0.00018347,2]
[382530134,1756657861914,-724.56,0.00018347,2]
[382530135,1756657861923,-480.0,0.00018347,2]
[382530136,1756657861932,-2511.97,0.00018347,2]
[382530137,1756657861941,-1853.11,0.00018347,2]
[382530138,1756657861950,-480.0,0.00018347,2]
[382530139,1756657861959,-480.0,0.00018347,2]
[382530141,1756657861969,-480.0,0.00018347,2]
[382530142,1756657861979,-1330.76,0.00018347,2]
[382530144,1756657861988,-1476.39,0.00018347,2]
[382530146,1756657861998,-480.0,0.00018347,2]
[382530148,1756657862007,-1225.04,0.00018347,2]
[382530150,1756657862017,-480.0,0.00018347,2]
[382530152,1756657862027,-151.0,0.00018347,2]
[382530154,1756657862037,-1905.28,0.00018347,2]
[382530156,1756657862046,-151.0,0.00018347,2]
[382530158,1756657862056,-547.5,0.00018347,2]
[382530160,1756657862067,-151.0,0.00018347,2]
[382530162,1756657862077,-480.0,0.00018347,2]
[382530164,1756657862086,-1225.21,0.00018347,2]
[382530166,1756657862097,-1270.39,0.00018347,2]
[382530168,1756657862107,-151.0,0.00018347,2]
[382530170,1756657862116,-480.0,0.00018347,2]
[382530172,1756657862126,-480.0,0.00018347,2]
[382530173,1756657862136,-500.0,0.00018348,2]
[382530175,1756657862145,-193.73538634,0.00018348,2]
[382530176,1756657862167,-480.0,0.00018348,2]
[382530178,1756657862178,-610.9,0.00018348,2]
[382530180,1756657862188,-480.0,0.00018348,2]
[382530182,1756657862197,-151.0,0.00018348,2]
[382530184,1756657862207,-986.67,0.00018348,2]
[382530186,1756657862216,-151.0,0.00018348,2]
[382530188,1756657862230,-746.18,0.00018348,2]
[382530190,1756657862239,-491.07,0.00018348,2]
[382530192,1756657862248,-480.0,0.00018348,2]
[382530194,1756657862259,-480.0,0.00018348,2]
[382530196,1756657862271,-525.1,0.00018348,2]
[382530198,1756657862281,-480.0,0.00018348,2]
[382530200,1756657862291,-647.59,0.00018348,2]
[382530202,1756657862304,-480.0,0.00018348,2]
[382530204,1756657862313,-151.0,0.00018348,2]
[382530206,1756657862323,-151.0,0.00018348,2]
[382530208,1756657862332,-806.18,0.00018348,2]
[382530210,1756657862341,-480.0,0.00018348,2]
[382530212,1756657862351,-480.0,0.00018348,2]
[382530214,1756657862361,-552.83,0.00018348,2]
[382530216,1756657862371,-480.0,0.00018348,2]
[382530218,1756657862381,-480.0,0.00018348,2]
[382530220,1756657862391,-480.0,0.00018348,2]
[382530222,1756657862402,-523.54,0.00018348,2]
[382530224,1756657862412,-480.0,0.00018348,2]
[382530226,1756657862422,-624.3,0.00018348,2]
[382530228,1756657862431,-151.0,0.00018348,2]
[382530230,1756657862440,-151.0,0.00018348,2]
[382530231,1756657862450,-151.0,0.00018348,2]
[382530233,1756657862459,-151.0,0.00018348,2]
[382530235,1756657862468,-151.0,0.00018348,2]
[382530237,1756657862479,-212.903848,0.00018348,2]
[382530239,1756657862489,-480.0,0.00018348,2]
[382530241,1756657862498,-480.0,0.00018348,2]
[382530243,1756657862508,-480.0,0.00018348,2]
[382530245,1756657862518,-733.47,0.00018348,2]
[382530247,1756657862527,-617.6,0.00018348,2]
[382530249,1756657862537,-480.0,0.00018348,2]
[382530250,1756657862547,-552.79,0.00018348,2]
[382530252,1756657862556,-480.0,0.0001835,2]
[382530255,1756657862566,-423.53794407,0.0001835,2]
[382530257,1756657862577,-584.91,0.0001835,2]
[382530258,1756657862587,-480.0,0.0001835,2]
[382530260,1756657862596,-480.0,0.0001835,2]
[382530262,1756657862607,-569.65,0.0001835,2]
[382530264,1756657862617,-480.0,0.0001835,2]
[382530267,1756657862628,-480.0,0.0001835,2]
[382530268,1756657862640,-786.46,0.0001835,2]
[382530270,1756657862649,-1044.72,0.0001835,2]
[382530271,1756657862659,-480.0,0.0001835,2]
[382530272,1756657862668,-480.0,0.0001835,2]
[382530273,1756657862677,-335.03468813,0.0001835,2]
[382530274,1756657862687,-480.0,0.0001835,2]
[382530275,1756657862697,-480.0,0.0001835,2]
[382530276,1756657862706,-480.0,0.0001835,2]
[382530277,1756657862716,-582.48,0.0001835,2]
[382530278,1756657862726,-480.0,0.0001835,2]
[382530279,1756657862736,-929.89,0.0001835,2]
[382530280,1756657862746,-1477.03,0.0001835,2]
[382530281,1756657862756,-151.0,0.0001835,2]
[382530282,1756657862767,-480.0,0.0001835,2]
[382530283,1756657862776,-151.0,0.0001835,2]
[382530284,1756657862786,-259.411577,0.0001835,2]
[382530285,1756657862796,-151.0,0.0001835,2]
[382530286,1756657862806,-151.0,0.00018358,2]
[382530287,1756657862815,-198.0,0.00018358,2]
[382530288,1756657862825,-500.0,0.00018358,2]
[382530289,1756657862835,-198.0,0.00018358,2]
[382530290,1756657862848,-151.0,0.00018358,2]
[382530291,1756657862857,-500.0,0.00018358,2]
[382530292,1756657862867,-619.28300412,0.00018358,2]
[382530293,1756657862876,-198.0,0.00018358,2]
[382530294,1756657862885,-151.0,0.00018358,2]
[382530295,1756657862894,-198.0,0.00018358,2]
[382530296,1756657862903,-151.0,0.00018358,2]
[382530297,1756657862913,-500.0,0.00018358,2]
[382530298,1756657862922,-553.64224544,0.00018358,2]
[382530299,1756657862932,-500.0,0.00018358,2]
[382530300,1756657862942,-500.0,0.00018358,2]
[382530301,1756657862951,-500.0,0.00018373,2]
[382530302,1756657862960,-500.0,0.00018373,2]
[382530303,1756657862969,-500.0,0.00018373,2]
[382530304,1756657862979,-500.0,0.00018373,2]
[382530305,1756657862988,-500.0,0.00018373,2]
[382530306,1756657862998,-642.24989844,0.00018373,2]
[382530308,1756657863009,-327.10318878,0.00018373,2]
[382530309,1756657863019,-588.05978159,0.00018373,2]
[382530311,1756657863028,-500.0,0.00018373,2]
[382530313,1756657863039,-500.0,0.00018373,2]
[382530316,1756657863050,-500.0,0.00018373,2]
[382530318,1756657863060,-500.0,0.00018373,2]
[382530319,1756657863070,-500.0,0.00018373,2]
[382530321,1756657863080,-500.0,0.00018373,2]
[382530323,1756657863091,-503.42794275,0.00018373,2]
[382530325,1756657863102,-500.0,0.00018373,2]
[382530328,1756657863113,-500.0,0.00018373,2]
[382530329,1756657863122,-500.0,0.00018373,2]
[382530331,1756657863132,-500.0,0.00018373,2]
[382530333,1756657863142,-500.0,0.00018373,2]
[382530335,1756657863152,-500.0,0.00018373,2]
[382530337,1756657863163,-500.0,0.00018373,2]
[382530339,1756657863173,-500.0,0.00018373,2]
[382530341,1756657863184,-500.0,0.00018373,2]
[382530343,1756657863193,-500.0,0.00018373,2]
[382530345,1756657863202,-500.0,0.00018373,2]
[382530347,1756657863212,-500.66724337,0.00018373,2]
[382530349,1756657863222,-500.0,0.00018373,2]
[382530351,1756657863235,-500.0,0.00018373,2]
[382530354,1756657863261,-500.0,0.00018373,2]
[382530356,1756657863271,-500.0,0.00018373,2]
[382530358,1756657863281,-557.25581236,0.00018373,2]
[382530360,1756657863290,-500.0,0.00018373,2]
[382530362,1756657863299,-500.0,0.00018373,2]
[382530364,1756657863309,-161.22446423,0.00018373,2]
[382530366,1756657863322,-500.0,0.00018373,2]
[382530369,1756657863332,-500.0,0.00018373,2]
[382530370,1756657863341,-506.18279322,0.00018373,2]
[382530372,1756657863351,-500.0,0.00018373,2]
[382530375,1756657863360,-500.0,0.00018373,2]
[382530377,1756657863371,-500.0,0.00018373,2]
[382530378,1756657863382,-500.0,0.00018373,2]
[382530380,1756657863392,-500.0,0.00018373,2]
[382530383,1756657863403,-500.0,0.00018373,2]
[382530385,1756657863413,-1056.70546257,0.0001839,2]
[382530387,1756657863423,-168.0,0.00018391,2]
[382530389,1756657863434,-375.0,0.00018398,2]
[382530391,1756657863444,-254.5,0.000184,2]
[382530393,1756657863454,-168.0,0.00018407,2]
[382530395,1756657863463,-153.377941,0.00018433,10]
[382530397,1756657863473,-375.0,0.00018441,2]
[382530399,1756657863484,-489.0,0.00018469,2]
[382530401,1756657863494,-1283.0,0.00018493,2]
[382530403,1756657863505,-4140.0,0.000185,2]
[382530405,1756657863515,-151.0,0.000185,2]
[382530406,1756657863527,-200.0,0.000185,3]
[382530408,1756657863537,-200.0,0.000185,3]
[382530410,1756657863547,-200.0,0.000185,3]
[382530413,1756657863557,-200.0,0.000185,3]
[382530414,1756657863567,-200.0,0.000185,3]
[382530416,1756657863577,-151.0,0.000185,2]
[382530419,1756657863587,-151.0,0.000185,2]
[382530421,1756657863596,-168.0,0.00018503,2]
[382530422,1756657863606,-155.47799131,0.00018514,2]
[382530424,1756657863616,-1000.0,0.00018552,2]
[382530427,1756657863626,-500.97484638,0.00018552,2]
[382530429,1756657863636,-1000.0,0.00018552,2]
[382530431,1756657863646,-153.377941,0.00018556,3]
[382530433,1756657863655,-1000.0,0.00018594,2]
[382530435,1756657863665,-1000.0,0.00018594,2]
[382530436,1756657863674,-299.55964499,0.00018594,2]
[382530439,1756657863684,-1000.0,0.00018594,2]
[382530440,1756657863696,-1000.0,0.00018594,2]
[382530442,1756657863706,-903.58140753,0.00018594,2]
[382530444,1756657863717,-500.81739419,0.00018594,2]
[382530446,1756657863727,-375.0,0.00018597,2]
[382530448,1756657863736,-1000.0,0.000186,3]
[382530450,1756657863746,-3000.0,0.000186,2]
[382530452,1756657863755,-1416.0538392,0.0001861,2]
[382530502,1756657864243,480.0,0.00017251,2]
[382530515,1756657864371,480.0,0.00017251,2]
[382530551,1756657864711,-2452.43,0.00017524,2]
[382530553,1756657864721,-480.0,0.00017525,2]
[382530555,1756657864730,-480.0,0.00017525,2]
[382530557,1756657864740,-291.0,0.0001764,2]
[382530559,1756657864750,-2452.43,0.00017798,2]
[382530561,1756657864761,-480.0,0.00017799,2]
[382530563,1756657864771,-562.23,0.00017802,2]
[382530565,1756657864780,-349.0,0.00017838,2]
[382530567,1756657864789,-422.0,0.00018034,2]
[382530569,1756657864799,-2452.43,0.00018072,2]
[382530571,1756657864810,-480.0,0.00018073,2]
[382530573,1756657864819,-562.23,0.00018076,2]
[382530575,1756657864829,-2452.43,0.00018346,2]
[382530577,1756657864838,-480.0,0.00018347,2]
[382530579,1756657864848,-562.23,0.0001835,2]
[382530581,1756657864857,-1583.9461608,0.0001861,2]
[382530583,1756657864866,-480.0,0.00018619,2]
[382530585,1756657864876,-6938.87,0.00018619,2]
[382530587,1756657864887,-1216.54,0.00018619,2]
[382530589,1756657864896,-855.11,0.00018619,2]
[382530591,1756657864905,-1478.65,0.00018619,2]
[382530593,1756657864914,-693.22,0.00018619,2]
[382530595,1756657864923,-1633.31,0.00018619,2]
[382530597,1756657864932,-480.0,0.00018619,2]
[382530599,1756657864942,-4778.03,0.00018619,2]
[382530601,1756657864953,-2906.33,0.00018619,2]
[382530603,1756657864962,-579.69,0.00018619,2]
[382530605,1756657864971,-1396.22,0.00018619,2]
[382530607,1756657864980,-938.5,0.00018619,2]
[382530609,1756657864990,-1764.23,0.00018619,2]
[382530611,1756657865001,-3000.0,0.0001862,2]
[382530613,1756657865012,-480.0,0.0001862,2]
[382530615,1756657865022,-480.0,0.0001862,2]
[382530617,1756657865032,-505.61,0.0001862,2]
[382530619,1756657865043,-493.46,0.0001862,2]
[382530621,1756657865052,-489.45,0.0001862,2]
[382530623,1756657865061,-745.47,0.0001862,2]
[382530625,1756657865071,-481.98,0.0001862,2]
[382530627,1756657865080,-844.26,0.0001862,2]
[382530629,1756657865092,-480.0,0.0001862,2]
[382530631,1756657865101,-480.0,0.0001862,2]
[382530633,1756657865111,-838.05,0.0001862,2]
[382530634,1756657865135,-1080.38,0.0001862,2]
[382530636,1756657865151,-1256.77,0.0001862,2]
[382530639,1756657865162,-1257.59,0.0001862,2]
[382530641,1756657865172,-606.92,0.0001862,2]
[382530643,1756657865183,-480.0,0.0001862,2]
[382530645,1756657865193,-480.0,0.0001862,2]
[382530647,1756657865203,-549.02,0.0001862,2]
[382530649,1756657865212,-480.0,0.0001862,2]
[382530651,1756657865223,-480.0,0.0001862,2]
[382530653,1756657865235,-618.78,0.0001862,2]
[382530655,1756657865246,-480.0,0.0001862,2]
[382530657,1756657865255,-1450.68,0.0001862,2]
[382530659,1756657865264,-1736.43,0.0001862,2]
[382530661,1756657865275,-638.98,0.0001862,2]
[382530663,1756657865285,-2452.43,0.0001862,2]
[382530665,1756657865295,-480.0,0.00018621,2]
[382530667,1756657865304,-151.0,0.00018621,2]
[382530669,1756657865314,-151.0,0.00018621,2]
[382530671,1756657865324,-480.0,0.00018621,2]
[382530673,1756657865333,-525.69,0.00018621,2]
[382530675,1756657865344,-480.0,0.00018621,2]
[382530677,1756657865354,-480.0,0.00018621,2]
[382530679,1756657865363,-598.54,0.00018621,2]
[382530681,1756657865373,-480.0,0.00018621,2]
[382530683,1756657865382,-1420.98,0.00018621,2]
[382530685,1756657865391,-480.0,0.00018621,2]
[382530687,1756657865401,-503.41,0.00018621,2]
[382530689,1756657865410,-480.0,0.00018621,2]
[382530691,1756657865420,-480.0,0.00018621,2]
[382530693,1756657865430,-315.26906731,0.00018621,2]
[382530695,1756657865440,-480.0,0.00018621,2]
[382530697,1756657865450,-1406.02,0.00018621,2]
[382530698,1756657865459,-832.07,0.00018621,2]
[382530700,1756657865468,-151.0,0.00018621,2]
[382530702,1756657865479,-480.0,0.00018621,2]
[382530703,1756657865490,-480.0,0.00018621,2]
[382530704,1756657865499,-480.0,0.00018621,2]
[382530705,1756657865509,-480.0,0.00018621,2]
[382530706,1756657865521,-480.0,0.00018621,2]
[382530707,1756657865532,-480.0,0.00018621,2]
[382530708,1756657865542,-692.35,0.00018621,2]
[382530709,1756657865552,-480.0,0.00018621,2]
[382530710,1756657865563,-480.0,0.00018621,2]
[382530711,1756657865574,-828.28,0.00018621,2]
[382530712,1756657865584,-687.22,0.00018621,2]
[382530714,1756657865594,-924.77,0.00018621,2]
[382530716,1756657865603,-480.0,0.00018621,2]
[382530717,1756657865612,-571.26,0.00018621,2]
[382530719,1756657865622,-480.0,0.00018621,2]
[382530721,1756657865634,-734.92,0.00018621,2]
[382530723,1756657865643,-901.21,0.00018621,2]
[382530725,1756657865655,-152.114682,0.00018621,2]
[382530727,1756657865664,-719.82,0.00018621,2]
[382530729,1756657865674,-636.43,0.00018621,2]
[382530731,1756657865684,-480.0,0.00018621,2]
[382530733,1756657865696,-608.79,0.00018621,2]
[382530735,1756657865708,-480.0,0.00018621,2]
[382530737,1756657865718,-480.0,0.00018621,2]
[382530739,1756657865728,-480.0,0.00018621,2]
[382530742,1756657865739,-333.93772454,0.00018621,2]
[382530743,1756657865749,-553.41,0.00018621,2]
[382530745,1756657865759,-480.0,0.00018621,2]
[382530747,1756657865769,-480.0,0.00018621,2]
[382530749,1756657865779,-920.8,0.00018621,2]
[382530752,1756657865789,-1002.33,0.00018621,2]
[382530753,1756657865798,-480.0,0.00018621,2]
[382530755,1756657865808,-806.79,0.00018621,2]
[382530758,1756657865820,-715.13,0.00018621,2]
[382530760,1756657865830,-480.0,0.00018621,2]
[382530761,1756657865840,-480.0,0.00018621,2]
[382530764,1756657865851,-474.03088596,0.00018621,2]
[382530766,1756657865861,-480.0,0.00018621,2]
[382530767,1756657865871,-2086.3,0.00018621,2]
[382530770,1756657865881,-480.0,0.00018621,2]
[382530771,1756657865891,-480.0,0.00018621,2]
[382530773,1756657865900,-154.02498362,0.00018621,2]
[382530779,1756657866019,480.0,0.00017251,2]
[382530780,1756657866071,480.0,0.00017251,2]
[382530781,1756657866337,6335.12,0.00017251,2]
[382530782,1756657866697,480.0,0.00017251,2]
[382530783,1756657867004,-480.0,0.00017525,2]
[382530784,1756657867015,-480.0,0.00017525,2]
[382530785,1756657867026,-1103.82253352,0.00017525,2]
[382530789,1756657867197,-5231.29746648,0.00017525,2]
[382530790,1756657867207,-480.0,0.00017525,2]
[382530791,1756657867217,-480.0,0.00017799,2]
[382530792,1756657867231,-6335.12,0.00017799,2]
[382530793,1756657867241,-480.0,0.00017799,2]
[382530794,1756657867250,-372.98,0.00017799,2]
[382530795,1756657867260,-258.097144,0.000178,2]
[382530796,1756657867270,-232.291306,0.000178,2]
[382530797,1756657867281,-232.291306,0.000178,2]
[382530798,1756657867291,-232.291306,0.00018073,2]
[382530799,1756657867301,-480.0,0.00018073,2]
[382530800,1756657867310,-6335.12,0.00018073,2]
[382530801,1756657867320,-480.0,0.00018073,2]
[382530802,1756657867330,-232.291306,0.00018076,2]
[382530803,1756657867341,-480.0,0.00018347,2]
[382530804,1756657867350,-6335.12,0.00018347,2]
[382530805,1756657867359,-232.291306,0.00018347,2]
[382530806,1756657867369,-232.291306,0.0001835,2]
[382530807,1756657867378,-325.97501638,0.00018621,2]
[382530808,1756657867388,-1306.82,0.00018621,2]
[382530809,1756657867399,-788.92,0.00018621,2]
[382530810,1756657867408,-480.0,0.00018621,2]
[382530811,1756657867416,-916.68,0.00018621,2]
[382530812,1756657867426,-480.0,0.00018621,2]
[382530813,1756657867435,-636.2,0.00018621,2]
[382530814,1756657867442,-151.0,0.00018621,2]
[382530815,1756657867451,-480.0,0.00018621,2]
[382530816,1756657867459,-480.0,0.00018621,2]
[382530817,1756657867467,-151.0,0.00018621,2]
[382530818,1756657867475,-151.0,0.00018621,2]
[382530819,1756657867483,-480.0,0.00018621,2]
[382530820,1756657867494,-572.73,0.00018621,2]
[382530821,1756657867502,-1206.47,0.00018621,2]
[382530822,1756657867511,-480.0,0.00018621,2]
[382530823,1756657867519,-730.21,0.00018621,2]
[382530824,1756657867527,-480.0,0.00018621,2]
[382530825,1756657867535,-480.0,0.00018621,2]
[382530826,1756657867544,-843.85,0.00018621,2]
[382530827,1756657867552,-704.81,0.00018621,2]
[382530828,1756657867560,-151.0,0.00018621,2]
[382530829,1756657867569,-626.04,0.00018621,2]
[382530830,1756657867579,-1454.86,0.00018621,2]
[382530831,1756657867590,-480.0,0.00018621,2]
[382530832,1756657867599,-1004.82,0.00018621,2]
[382530833,1756657867607,-1694.45,0.00018621,2]
[382530834,1756657867614,-831.25,0.00018621,2]
[382530835,1756657867622,-480.0,0.00018621,2]
[382530836,1756657867631,-480.0,0.00018621,2]
[382530837,1756657867638,-480.0,0.00018621,2]
[382530838,1756657867646,-480.0,0.00018621,2]
[382530839,1756657867654,-151.0,0.00018621,2]
[382530840,1756657867662,-480.0,0.00018621,2]
[382530841,1756657867671,-622.54,0.00018621,2]
[382530842,1756657867679,-580.61,0.00018621,2]
[382530843,1756657867689,-549.93,0.00018621,2]
[382530844,1756657867697,-480.0,0.00018621,2]
[382530845,1756657867705,-480.0,0.00018621,2]
[382530846,1756657867715,-480.0,0.00018621,2]
[382530847,1756657867723,-513.99,0.00018621,2]
[382530848,1756657867732,-480.0,0.00018621,2]
[382530849,1756657867740,-644.35,0.00018621,2]
[382530850,1756657867748,-1195.69,0.00018621,2]
[382530851,1756657867756,-1905.95,0.00018621,2]
[382530852,1756657867765,-1349.31,0.00018621,2]
[382530853,1756657867774,-480.0,0.00018621,2]
[382530854,1756657867783,-480.0,0.00018621,2]
[382530855,1756657867793,-151.0,0.00018621,2]
[382530856,1756657867801,-151.0,0.00018621,2]
[382530857,1756657867809,-151.0,0.00018621,2]
[382530858,1756657867819,-1533.18,0.00018621,2]
[382530859,1756657867831,-480.0,0.00018621,2]
[382530860,1756657867841,-1320.11,0.00018621,2]
[382530861,1756657867851,-482.84,0.00018621,2]
[382530862,1756657867860,-618.4,0.00018621,2]
[382530863,1756657867871,-1315.24,0.00018621,2]
[382530864,1756657867880,-480.0,0.00018621,2]
[382530865,1756657867889,-480.0,0.00018621,2]
[382530866,1756657867899,-480.0,0.00018621,2]
[382530867,1756657867908,-480.0,0.00018621,2]
[382530868,1756657867918,-210.11775553,0.00018621,2]
[382530869,1756657867928,-1083.69,0.00018621,2]
[382530870,1756657867938,-1286.27,0.00018621,2]
[382530871,1756657867947,-480.0,0.00018621,2]
[382530872,1756657867958,-480.0,0.00018621,2]
[382530873,1756657867969,-480.0,0.00018621,2]
[382530874,1756657867980,-480.0,0.00018621,2]
[382530875,1756657867989,-1082.04,0.00018621,2]
[382530876,1756657867999,-480.0,0.00018621,2]
[382530877,1756657868010,-480.0,0.00018621,2]
[382530878,1756657868022,-712.42,0.00018621,2]
[382530879,1756657868033,-1334.57,0.00018621,2]
[382530880,1756657868043,-1378.19,0.00018621,2]
[382530881,1756657868054,-480.0,0.00018621,2]